bitfinex-derivatives/quotes_BTCF0:USTF0_20251206
["timestamp","ask_amount","ask_price","bid_price","bid_amount"]
[1765010524359,0.4610799,89430.0,89429.0,0.05691771]
[1765010524663,0.4610799,89430.0,89429.0,0.02756771]
[1765010526359,0.0199,89430.0,89429.0,0.05691771]
[1765010526554,0.0313574,89446.0,89445.0,0.05675]
[1765010526754,0.48782367,89446.0,89445.0,0.05675]
[1765010527060,0.48782367,89446.0,89445.0,0.07369]
[1765010531567,0.0111785,89441.0,89440.0,0.01694]
[1765010531760,0.48754477,89441.0,89440.0,0.07369]
[1765010532162,0.08754477,89441.0,89440.0,0.07369]
[1765010532359,0.05754477,89441.0,89440.0,0.07369]
[1765010533656,0.04636627,89441.0,89440.0,0.07369]
[1765010535670,0.40636627,89441.0,89440.0,0.07369]
[1765010551587,0.39641627,89441.0,89440.0,0.07369]
[1765010552386,0.02646627,89441.0,89440.0,0.07369]
[1765010552589,0.0102295,89446.0,89445.0,0.07319]
[1765010552786,0.3702295,89446.0,89445.0,0.07561002]
[1765010553086,0.39676094,89446.0,89445.0,0.07561002]
[1765010553286,0.40671094,89446.0,89445.0,0.07561002]
[1765010553886,0.39676094,89446.0,89445.0,0.07561002]
[1765010554083,0.38681094,89446.0,89445.0,0.07561002]
[1765010554683,0.39676094,89446.0,89445.0,0.07561002]
[1765010555589,0.40671094,89446.0,89445.0,0.07561002]
[1765010563491,0.40671094,89446.0,89445.0,0.07319]
[1765010564596,0.40670614,89446.0,89445.0,0.07319]
[1765010566893,0.40670614,89446.0,89440.0,0.02789]
[1765010566894,0.0199,89441.0,89440.0,0.02789]
[1765010567088,0.3799,89441.0,89440.0,0.02789]
[1765010567291,0.40642664,89441.0,89440.0,0.05596]
[1765010567594,0.40642664,89441.0,89440.0,0.07319]
[1765010573287,0.38652664,89441.0,89440.0,0.07319]
[1765010573603,0.0002795,89446.0,89445.0,0.0559]
[1765010573797,0.0102295,89446.0,89445.0,0.05832002]
[1765010573996,0.03676188,89446.0,89445.0,0.05832002]
[1765010574292,0.04671188,89446.0,89445.0,0.05832002]
[1765010575296,0.03676188,89446.0,89445.0,0.05832002]
[1765010575497,0.0201795,89446.0,89445.0,0.05832002]
[1765010581204,0.4401795,89446.0,89445.0,0.05832002]
[1765010581405,0.0310785,89441.0,89440.0,0.04561]
[1765010581601,0.3810785,89441.0,89440.0,0.02838]
[1765010582296,0.40751915,89441.0,89440.0,0.02838]
[1765010584920,0.3810785,89441.0,89440.0,0.02838]
[1765010585105,0.40751922,89441.0,89440.0,0.02838]
[1765010586110,0.40751922,89441.0,89440.0,0.05609]
[1765010586410,0.40751922,89441.0,89440.0,0.07253]
[1765010589108,0.39634072,89441.0,89440.0,0.07253]
[1765010592519,0.3699,89441.0,89440.0,0.07253]
[1765010596417,0.1399,89441.0,89440.0,0.07253]
[1765010596619,0.3799,89441.0,89440.0,0.07253]
[1765010596914,0.40634012,89441.0,89440.0,0.04482]
[1765010597119,0.40634012,89441.0,89440.0,0.07253]
[1765010597619,0.0199,89436.0,89435.0,0.07303]
[1765010597815,0.4199,89436.0,89435.0,0.07303]
[1765010598014,0.4310791,89436.0,89435.0,0.07303]
[1765010601223,0.4199,89436.0,89435.0,0.07303]
[1765010602725,0.40995,89436.0,89435.0,0.07303]
[1765010603725,0.4199,89436.0,89435.0,0.07303]
[1765010605326,0.0310782,89444.0,89443.0,0.05609]
[1765010605526,0.05751966,89444.0,89443.0,0.05851002]
[1765010611931,0.48751966,89444.0,89443.0,0.05609]
[1765010612324,0.48751966,89444.0,89443.0,0.02838]
[1765010612525,0.0199,89441.0,89440.0,0.07302]
[1765010612830,0.39634146,89441.0,89440.0,0.07302]
[1765010615233,0.38639146,89441.0,89440.0,0.07302]
[1765010615425,0.37644146,89441.0,89440.0,0.07302]
[1765010615630,0.39634146,89441.0,89440.0,0.07302]
[1765010622441,0.3699,89441.0,89440.0,0.07302]
[1765010629350,0.39631652,89441.0,89440.0,0.07302]
[1765010640860,0.39633112,89441.0,89440.0,0.07302]
[1765010642157,0.0002795,89446.0,89440.0,0.07302]
[1765010642357,0.0201795,89446.0,89445.0,0.05923002]
[1765010642560,0.03666489,89446.0,89445.0,0.05923002]
[1765010642761,0.0002795,89446.0,89445.0,0.05923002]
[1765010642959,0.0102295,89446.0,89445.0,0.05923002]
[1765010643154,0.0201795,89446.0,89445.0,0.05923002]
[1765010643458,0.0002795,89446.0,89445.0,0.05923002]
[1765010648663,0.0002795,89446.0,89445.0,0.47923002]
[1765010651166,0.0310763,89459.0,89458.0,0.05681]
[1765010651360,0.44748522,89459.0,89458.0,0.05681]
[1765010660071,0.0199,89451.0,89450.0,0.00016771]
[1765010660280,0.41630892,89451.0,89450.0,0.03206773]
[1765010660472,0.41630892,89451.0,89450.0,0.05939773]
[1765010672193,0.41630892,89451.0,89450.0,0.05697771]
[1765010674892,0.41630892,89451.0,89450.0,0.02964771]
[1765010675093,0.41630892,89451.0,89450.0,0.00016771]
[1765010675294,0.41630892,89451.0,89450.0,0.00258773]
[1765010675496,0.41630892,89451.0,89450.0,0.02889771]
[1765010675896,0.41630892,89451.0,89450.0,0.05658771]
[1765010676295,0.41630892,89451.0,89450.0,0.00016771]
[1765010683103,0.0199,89441.0,89440.0,0.38653246]
[1765010683302,0.3899,89441.0,89440.0,0.07281]
[1765010702113,0.0199,89437.0,89436.0,0.0441]
[1765010702310,0.0199,89437.0,89436.0,0.07229]
[1765010702510,0.00995,89437.0,89436.0,0.07229]
[1765010703418,0.02006737,89449.0,89448.0,0.07365]
[1765010703623,0.44006737,89449.0,89448.0,0.07365]
[1765010703819,0.46658485,89449.0,89448.0,0.07365]
[1765010704320,0.18658485,89449.0,89448.0,0.07365]
[1765010704513,0.02668485,89449.0,89448.0,0.07365]
[1765010704718,0.00016737,89449.0,89448.0,0.07365]
[1765010706227,0.02006737,89449.0,89448.0,0.07365]
[1765010706821,0.02006737,89449.0,89442.0,0.0289283]
[1765010706822,0.0199,89443.0,89442.0,0.07365]
[1765010707029,0.3999,89443.0,89442.0,0.02771]
[1765010707228,0.0199,89440.0,89439.0,0.04546]
[1765010707423,0.4399,89440.0,89439.0,0.07365]
[1765010712335,0.46642632,89440.0,89439.0,0.07365]
[1765010716536,0.46642632,89440.0,89439.0,0.0559]
[1765010716947,0.04642632,89440.0,89439.0,0.0559]
[1765010719737,0.02652632,89440.0,89439.0,0.0559]
[1765010719939,0.01134487,89449.0,89448.0,0.07365]
[1765010719940,0.00016737,89449.0,89448.0,0.07365]
[1765010720237,0.00016737,89449.0,89448.0,0.0848276]
[1765010721034,0.05742737,89449.0,89448.0,0.07365]
[1765010722243,0.05742737,89449.0,89448.0,0.0848276]
[1765010724241,0.00016737,89449.0,89448.0,0.0848276]
[1765010724444,0.05742737,89449.0,89448.0,0.0848276]
[1765010725341,0.00016737,89449.0,89448.0,0.0848276]
[1765010738056,0.05492737,89449.0,89448.0,0.0848276]
[1765010738456,0.02766737,89449.0,89448.0,0.0848276]
[1765010739564,0.05492737,89449.0,89448.0,0.0848276]
[1765010742972,0.05476,89445.0,89444.0,0.0577]
[1765010743171,0.43476,89445.0,89444.0,0.0577]
[1765010743470,0.43476,89445.0,89436.0,0.0577]
[1765010743471,0.065939,89437.0,89436.0,0.0577]
[1765010743662,0.495939,89437.0,89436.0,0.0577]
[1765010745467,0.0659395,89433.0,89432.0,0.00016771]
[1765010745665,0.0111805,89425.0,89424.0,0.0164]
[1765010745866,0.0111805,89425.0,89420.0,0.0164]
[1765010745867,0.065941,89421.0,89420.0,0.0577]
[1765010746056,0.445941,89421.0,89420.0,0.02867]
[1765010746371,0.445941,89421.0,89416.0,0.0577]
[1765010746372,0.0111815,89418.0,89416.0,0.0577]
[1765010746565,0.05476,89414.0,89413.0,0.0114405]
[1765010746771,0.05476,89409.0,89408.0,0.0741]
[1765010746974,0.40476,89409.0,89408.0,0.0741]
[1765010747476,0.4159425,89409.0,89408.0,0.0741]
[1765010748472,0.4159425,89409.0,89408.0,0.0577]
[1765010750271,0.05476,89407.0,89406.0,0.00027962]
[1765010750577,0.41476,89407.0,89406.0,0.02894962]
[1765010751274,0.41476,89407.0,89406.0,0.05797962]
[1765010756883,0.41476,89407.0,89406.0,0.02894962]
[1765010757579,0.41476,89407.0,89406.0,0.00027962]
[1765010760782,0.41476,89407.0,89406.0,0.03008962]
[1765010760983,0.41476,89407.0,89406.0,0.00027962]
[1765010761783,0.41476,89407.0,89406.0,0.02996962]
[1765010762082,0.41476,89407.0,89406.0,0.05699962]
[1765010762275,0.0111825,89409.0,89408.0,0.07301]
[1765010762582,0.4101125,89409.0,89408.0,0.07543002]
[1765010762780,0.4388025,89409.0,89408.0,0.07543002]
[1765010762984,0.4388025,89409.0,89408.0,0.07301]
[1765010763176,0.05762,89407.0,89406.0,0.00027962]
[1765010763376,0.48762,89407.0,89406.0,0.00027962]
[1765010763973,0.48762,89407.0,89405.0,0.00016771]
[1765010763974,0.0688029,89406.0,89405.0,0.00016771]
[1765010764174,0.4988029,89406.0,89405.0,0.00016771]
[1765010764587,0.4988029,89406.0,89390.0,0.18150442]
[1765010764588,0.0111844,89394.0,89390.0,0.18150442]
[1765010764878,0.0111844,89394.0,89385.0,0.01629]
[1765010764879,0.4488044,89394.0,89385.0,0.01629]
[1765010765184,0.4488044,89394.0,89388.0,0.0115301]
[1765010765571,0.4488044,89394.0,89385.0,0.01629]
[1765010765771,0.4488044,89394.0,89385.0,0.01645771]
[1765010765976,0.4488044,89394.0,89385.0,0.02796942]
[1765010766377,0.4488044,89394.0,89385.0,0.01645771]
[1765010771087,0.4488044,89394.0,89385.0,0.00016771]
[1765010772782,0.0688054,89386.0,89385.0,0.05688771]
[1765010772982,0.4488054,89386.0,89385.0,0.05688771]
[1765010773794,0.44890535,89386.0,89385.0,0.05688771]
[1765010773990,0.44890535,89386.0,89385.0,0.05888771]
[1765010774681,0.44890535,89386.0,89385.0,0.06488771]
[1765010776280,0.44890535,89386.0,89385.0,0.00816771]
[1765010776479,0.47545664,89386.0,89385.0,0.00816771]
[1765010777290,0.47545664,89386.0,89385.0,0.00616771]
[1765010777686,0.47545664,89386.0,89385.0,0.00016771]
[1765010782893,0.47545664,89386.0,89385.0,0.02985771]
[1765010783094,0.47545664,89386.0,89385.0,0.05688771]
[1765010783283,0.38009995,89386.0,89385.0,0.05688771]
[1765010783487,0.08009995,89386.0,89385.0,0.05688771]
[1765010786696,0.09128535,89386.0,89385.0,0.05688771]
[1765010786996,0.08009995,89386.0,89385.0,0.05688771]
[1765010788802,9.995e-05,89386.0,89385.0,0.05688771]
[1765010791396,0.0111843,89395.0,89394.0,0.05704]
[1765010791602,0.03775137,89395.0,89394.0,0.05704]
[1765010792800,0.02656707,89395.0,89394.0,0.05704]
[1765010793991,0.0111838,89399.0,89398.0,0.05704]
[1765010794192,0.40762874,89399.0,89398.0,0.05946002]
[1765010794389,0.43590874,89399.0,89398.0,0.05946002]
[1765010795493,0.46406874,89399.0,89398.0,0.05946002]
[1765010797098,0.4376238,89399.0,89398.0,0.05946002]
[1765010800804,0.4376238,89399.0,89398.0,0.05704]
[1765010801007,0.05644,89393.0,89392.0,0.07377]
[1765010802700,0.40644,89393.0,89392.0,0.05704]
[1765010806307,0.05644,89393.0,89392.0,0.07377]
[1765010810503,0.0405841,89396.0,89395.0,0.05974]
[1765010810713,0.47652823,89396.0,89395.0,0.06216002]
[1765010811214,0.47652823,89396.0,89395.0,0.02987]
[1765010811410,0.47652823,89396.0,89395.0,0.05974]
[1765010812510,0.4500841,89396.0,89395.0,0.05974]
[1765010815116,0.4765502,89396.0,89395.0,0.05974]
[1765010816014,0.4500841,89396.0,89395.0,0.05974]
[1765010816215,0.47639516,89396.0,89395.0,0.05974]
[1765010817211,0.0589,89389.0,89388.0,0.05974]
[1765010817520,0.0589,89386.0,89385.0,0.05990771]
[1765010819515,0.4089,89386.0,89385.0,0.05990771]
[1765010819915,0.4089,89386.0,89385.0,0.00016771]
[1765010820112,0.43521154,89386.0,89385.0,0.00016771]
[1765010820310,0.0561,89373.0,89372.0,0.06862887]
[1765010820616,0.0561,89366.0,89365.0,0.10820971]
[1765010820812,0.4061,89366.0,89365.0,0.05718]
[1765010821714,0.1361,89366.0,89365.0,0.05718]
[1765010822915,0.05626781,89374.0,89373.0,0.05718]
[1765010823115,0.30626781,89374.0,89373.0,0.05718]
[1765010825831,0.05626781,89374.0,89373.0,0.05718]
[1765010826624,0.00016781,89374.0,89373.0,0.05718]
[1765010827036,0.02741781,89374.0,89373.0,0.05718]
[1765010827223,0.00016781,89374.0,89373.0,0.05718]
[1765010830837,0.00016781,89374.0,89373.0,0.42718]
[1765010831942,0.00016781,89374.0,89373.0,0.43018]
[1765010833339,0.00016781,89374.0,89373.0,0.43218]
[1765010833542,0.00016781,89374.0,89373.0,0.43418]
[1765010837237,0.02741781,89374.0,89373.0,0.43418]
[1765010838837,0.05626781,89374.0,89373.0,0.06218]
[1765010839032,0.00016781,89374.0,89373.0,0.06318]
[1765010839233,0.00016781,89374.0,89373.0,0.44318]
[1765010839541,0.0384352,89387.0,89386.0,0.05718]
[1765010839739,0.0672852,89387.0,89386.0,0.05718]
[1765010840145,0.2861,89387.0,89386.0,0.05718]
[1765010840347,0.2972852,89387.0,89386.0,0.05718]
[1765010842447,0.2861,89387.0,89386.0,0.05718]
[1765010843151,0.0561,89381.0,89380.0,0.07389]
[1765010843337,0.4761,89381.0,89380.0,0.05718]
[1765010845247,0.4761,89381.0,89380.0,0.07389]
[1765010846751,0.4761,89381.0,89380.0,0.05718]
[1765010847946,0.4761,89381.0,89380.0,0.02779]
[1765010848154,0.4761,89381.0,89380.0,0.05718]
[1765010849950,0.4761,89381.0,89380.0,0.02779]
[1765010850251,0.05733,89379.0,89378.0,0.02968781]
[1765010850459,0.43733,89379.0,89378.0,0.02968781]
[1765010853148,0.43733,89379.0,89378.0,0.00016781]
[1765010854450,0.05733,89366.0,89365.0,0.07502]
[1765010854653,0.0685179,89366.0,89365.0,0.07502]
[1765010854962,0.05733,89366.0,89365.0,0.07502]
[1765010861854,0.06868471,89374.0,89373.0,0.05831]
[1765010862050,0.05749781,89374.0,89373.0,0.06073002]
[1765010865658,0.02914781,89374.0,89373.0,0.06073002]
[1765010866255,0.05749781,89374.0,89373.0,0.06073002]
[1765010866859,0.45868471,89374.0,89373.0,0.05831]
[1765010867158,0.0685175,89369.0,89368.0,0.05831]
[1765010867355,0.4985175,89369.0,89368.0,0.07562]
[1765010867859,0.4985175,89369.0,89368.0,0.05831]
[1765010868958,0.0111881,89365.0,89362.0,0.01155311]
[1765010869158,0.05733,89363.0,89362.0,0.02952]
[1765010869364,0.42733,89363.0,89362.0,0.02952]
[1765010869566,0.05523,89358.0,89357.0,0.05771781]
[1765010869754,0.05523,89358.0,89357.0,0.06013783]
[1765010871154,0.05523,89358.0,89357.0,0.07126327]
[1765010880772,0.02783,89358.0,89357.0,0.07126327]
[1765010881174,0.0683081,89365.0,89364.0,0.072]
[1765010881470,0.0683081,89365.0,89364.0,0.02704]
[1765010881669,0.0683081,89365.0,89364.0,0.05419]
[1765010882868,0.05712,89365.0,89364.0,0.072]
[1765010883568,0.02916,89369.0,89368.0,0.04496]
[1765010883768,0.02916,89369.0,89368.0,0.072]
[1765010884065,0.05712,89369.0,89368.0,0.072]
[1765010890571,0.05712,89369.0,89364.0,0.05419]
[1765010890572,0.011188,89365.0,89364.0,0.05419]
[1765010890874,0.0111885,89361.0,89360.0,0.05419]
[1765010891075,0.0683085,89361.0,89360.0,0.05419]
[1765010891369,0.4983085,89361.0,89360.0,0.05419]
[1765010895279,0.4983085,89361.0,89360.0,0.02704]
[1765010897181,0.52450904,89361.0,89360.0,0.02704]
[1765010897976,0.52450904,89361.0,89348.0,0.0290001]
[1765010897977,0.05712,89358.0,89357.0,0.00016781]
[1765010898280,0.50332054,89358.0,89357.0,0.00016781]
[1765010899785,0.0683105,89345.0,89344.0,0.072]
[1765010900079,0.4683105,89345.0,89344.0,0.072]
[1765010900975,0.4683105,89345.0,89344.0,0.074]
[1765010901883,0.4683105,89345.0,89344.0,0.08]
[1765010904680,0.3683105,89345.0,89344.0,0.06219]
[1765010906882,0.3683105,89345.0,89344.0,0.08]
[1765010908285,0.3583105,89345.0,89344.0,0.08]
[1765010911589,0.3583105,89345.0,89344.0,0.008]
[1765010914196,0.3583105,89345.0,89344.0,0.006]
[1765010914784,0.066751,89341.0,89340.0,0.00011865]
[1765010915080,0.466751,89341.0,89340.0,0.00011865]
[1765010915996,0.466751,89341.0,89340.0,0.05584865]
[1765010926500,0.466751,89341.0,89340.0,0.02850865]
[1765010926902,0.466751,89341.0,89340.0,0.05584865]
[1765010928102,0.466751,89341.0,89340.0,0.00011865]
[1765010928602,0.4926703,89341.0,89340.0,0.00011865]
[1765010929304,0.0687515,89337.0,89336.0,0.00016781]
[1765010929598,0.05898,89327.0,89326.0,0.05608988]
[1765010929803,0.43898,89327.0,89326.0,0.0585099]
[1765010930004,0.43898,89327.0,89326.0,0.06982752]
[1765010930203,0.43906771,89327.0,89326.0,0.06982752]
[1765010930404,0.43906771,89327.0,89326.0,0.0674075]
[1765010931504,0.43906771,89327.0,89326.0,0.0684075]
[1765010932204,0.45026051,89327.0,89326.0,0.0684075]
[1765010932405,0.45026051,89327.0,89326.0,0.0674075]
[1765010932903,0.07026051,89327.0,89326.0,0.0674075]
[1765010934406,0.49026051,89327.0,89326.0,0.0674075]
[1765010935103,0.48026051,89327.0,89326.0,0.0674075]
[1765010936401,0.07026051,89327.0,89326.0,0.0674075]
[1765010936605,0.20026051,89327.0,89326.0,0.0674075]
[1765010937505,0.44026051,89327.0,89326.0,0.0674075]
[1765010938208,0.18026051,89327.0,89326.0,0.0674075]
[1765010938410,0.04028051,89327.0,89326.0,0.0674075]
[1765010938808,0.07026051,89327.0,89326.0,0.0674075]
[1765010939709,8.771e-05,89327.0,89326.0,0.0674075]
[1765010940101,8.771e-05,89327.0,89326.0,0.4874075]
[1765010940502,0.16536402,89350.0,89326.0,0.4874075]
[1765010940713,0.0111899,89350.0,89349.0,0.05624]
[1765010940904,0.0111899,89350.0,89348.0,0.01716]
[1765010940905,0.05665781,89353.0,89352.0,0.0734]
[1765010941104,0.05665781,89353.0,89352.0,0.07582002]
[1765010941105,0.08260712,89353.0,89352.0,0.07582002]
[1765010941301,0.02611712,89353.0,89352.0,0.43700962]
[1765010941605,0.00016781,89353.0,89352.0,0.08700962]
[1765010943707,0.02838781,89353.0,89352.0,0.08700962]
[1765010944914,0.05665781,89353.0,89352.0,0.07582002]
[1765010946509,0.05649,89345.0,89344.0,0.04579]
[1765010946710,0.05649,89345.0,89344.0,0.0734]
[1765010946913,0.05649,89345.0,89344.0,0.05624]
[1765010947112,0.05649,89342.0,89341.0,0.02874264]
[1765010947416,0.48649,89342.0,89341.0,0.02874264]
[1765010947618,0.48649,89342.0,89341.0,0.00011264]
[1765010949014,0.48649,89342.0,89341.0,0.02874264]
[1765010949315,0.48649,89342.0,89341.0,0.05635264]
[1765010952118,0.48649,89342.0,89341.0,0.02874264]
[1765010952518,0.512409,89342.0,89341.0,0.02874264]
[1765010953016,0.512409,89342.0,89341.0,0.00011264]
[1765010953218,0.51240847,89342.0,89341.0,0.00011264]
[1765010954019,0.05649,89331.0,89330.0,0.0734]
[1765010954216,0.48649,89331.0,89330.0,0.0734]
[1765010954719,0.4976822,89331.0,89330.0,0.0734]
[1765010955218,0.0676828,89327.0,89326.0,0.05651988]
[1765010955422,0.4176828,89327.0,89326.0,0.05651988]
[1765010956329,0.0676828,89327.0,89326.0,0.05651988]
[1765010956622,0.1176828,89327.0,89326.0,0.05651988]
[1765010957422,0.1176828,89327.0,89326.0,0.02890988]
[1765010957614,0.1176828,89327.0,89326.0,0.05651988]
[1765010957615,0.4976828,89327.0,89326.0,0.05651988]
[1765010958222,0.4976828,89327.0,89326.0,0.02890988]
[1765010958422,0.4976828,89327.0,89326.0,0.00027988]
[1765010959217,0.0676835,89321.0,89320.0,0.0734]
[1765010961526,0.4176835,89321.0,89320.0,0.05624]
[1765010962321,0.0676848,89311.0,89310.0,0.0734]
[1765010963621,0.0676848,89311.0,89310.0,0.0754]
[1765010963837,0.05649,89311.0,89310.0,0.09279048]
[1765010967727,0.00016791,89329.0,89310.0,0.09279048]
[1765010967728,0.06785041,89329.0,89328.0,0.02761]
[1765010967922,0.17785041,89329.0,89328.0,0.05624]
[1765010968321,0.37785041,89329.0,89328.0,0.05624]
[1765010968522,0.13785041,89329.0,89328.0,0.05624]
[1765010971726,0.06785041,89329.0,89328.0,0.05624]
[1765010977233,0.09393468,89329.0,89328.0,0.05624]
[1765010978741,0.00016791,89329.0,89328.0,0.40624]
[1765010979337,0.06758041,89329.0,89328.0,0.40624]
[1765010979643,0.47367148,89329.0,89328.0,0.05624]
[1765010980042,0.44758041,89329.0,89328.0,0.05624]
[1765010980229,0.47367499,89329.0,89328.0,0.05624]
[1765010980435,0.20367499,89329.0,89328.0,0.05624]
[1765010982949,0.09367499,89329.0,89328.0,0.05624]
[1765010984649,0.08248249,89329.0,89328.0,0.05624]
[1765010985542,0.46248249,89329.0,89328.0,0.02863]
[1765010985742,0.0111907,89344.0,89337.0,0.0111914]
[1765010986043,0.0111907,89344.0,89343.0,0.05876002]
[1765010986240,0.0386107,89344.0,89343.0,0.05876002]
[1765010986845,0.0674102,89348.0,89347.0,0.05634]
[1765010993344,0.4974102,89348.0,89347.0,0.02732]
[1765010993956,0.4974102,89348.0,89347.0,0.05634]
[1765010997959,0.52325017,89348.0,89347.0,0.05634]
[1765010998351,0.09325017,89348.0,89347.0,0.05634]
[1765011000761,0.09325017,89348.0,89340.0,0.0175]
[1765011000951,0.09325017,89348.0,89335.0,0.02728791]
[1765011000952,0.0695016,89336.0,89335.0,0.02728791]
[1765011001151,0.17666823,89350.0,89335.0,0.02728791]
[1765011001152,0.06966751,89352.0,89351.0,0.05668]
[1765011001352,0.48550659,89352.0,89351.0,0.05668]
[1765011002962,0.48550659,89352.0,89351.0,0.02712]
[1765011003162,0.0695004,89346.0,89345.0,0.07436]
[1765011003460,0.09533948,89346.0,89345.0,0.07436]
[1765011007060,0.03702948,89346.0,89345.0,0.07436]
[1765011008363,0.06560948,89346.0,89345.0,0.07436]
[1765011009960,0.02583908,89346.0,89345.0,0.49436]
[1765011010262,0.09534771,89351.0,89350.0,0.07436]
[1765011011955,0.09535163,89351.0,89350.0,0.07436]
[1765011014267,0.06562163,89351.0,89350.0,0.07436]
[1765011014471,0.09535163,89351.0,89350.0,0.07436]
[1765011021575,0.03704163,89351.0,89350.0,0.07436]
[1765011021875,0.06562163,89351.0,89350.0,0.07436]
[1765011022077,0.09535163,89351.0,89350.0,0.07436]
[1765011024974,0.03704163,89351.0,89350.0,0.07436]
[1765011026073,0.09535163,89351.0,89350.0,0.07436]
[1765011026476,0.09535163,89351.0,89350.0,0.48436]
[1765011028473,0.03704163,89351.0,89350.0,0.4955499]
[1765011028672,0.03704163,89351.0,89350.0,0.48436]
[1765011028871,0.09535163,89351.0,89350.0,0.48436]
[1765011030785,0.06562163,89351.0,89350.0,0.48436]
[1765011031470,0.09415163,89351.0,89350.0,0.48436]
[1765011031871,0.09415163,89351.0,89350.0,0.15436]
[1765011032573,0.09415163,89351.0,89350.0,0.39436]
[1765011034682,0.09415163,89351.0,89350.0,0.07436]
[1765011035878,0.09415163,89351.0,89350.0,0.05668]
[1765011036873,0.0676004,89346.0,89345.0,0.07629]
[1765011037074,0.09345233,89346.0,89345.0,0.07629]
[1765011037481,0.09345233,89346.0,89345.0,0.05861]
[1765011040090,0.067601,89341.0,89340.0,0.05861]
[1765011040278,0.47345293,89341.0,89340.0,0.05861]
[1765011044181,0.447601,89341.0,89340.0,0.05861]
[1765011044486,0.47347265,89341.0,89340.0,0.05861]
[1765011044683,0.47347264,89341.0,89340.0,0.05861]
[1765011045091,0.447601,89341.0,89340.0,0.05861]
[1765011046588,0.011191,89341.0,89340.0,0.07619]
[1765011046789,0.011191,89341.0,89340.0,0.44619]
[1765011047685,0.0111905,89345.0,89344.0,0.05861]
[1765011047890,0.0111905,89345.0,89344.0,0.41861]
[1765011048392,0.03706008,89345.0,89344.0,0.41861]
[1765011048887,0.02586958,89345.0,89344.0,0.41861]
[1765011050293,0.02586958,89345.0,89344.0,0.43619]
[1765011052299,0.0111904,89346.0,89345.0,0.05861]
[1765011052494,0.0111904,89346.0,89345.0,0.47103002]
[1765011052794,0.00016791,89352.0,89351.0,0.05861]
[1765011053000,0.03722594,89352.0,89351.0,0.46103002]
[1765011054197,0.07993296,89377.0,89351.0,0.46103002]
[1765011054198,0.0111887,89360.0,89359.0,0.05861]
[1765011054395,0.0111887,89360.0,89359.0,0.43861]
[1765011054593,0.03705397,89360.0,89359.0,0.43861]
[1765011056199,0.03705397,89360.0,89359.0,0.44968691]
[1765011056900,0.0111887,89360.0,89359.0,0.44968691]
[1765011062904,0.03702096,89360.0,89359.0,0.44968691]
[1765011071112,0.00016791,89368.0,89359.0,0.39107691]
[1765011071311,0.0111858,89383.0,89372.0,0.01717]
[1765011071511,0.0111858,89383.0,89382.0,0.05712]
[1765011071714,0.07993296,89394.0,89392.0,0.01717]
[1765011071715,0.0111844,89394.0,89392.0,0.01717]
[1765011071913,0.0111831,89404.0,89400.0,0.01717]
[1765011072216,0.0681724,89410.0,89409.0,0.05712]
[1765011072419,0.00016781,89411.0,89409.0,0.05712]
[1765011072714,0.00016781,89411.0,89410.0,0.05954002]
[1765011073517,0.05715781,89411.0,89410.0,0.05954002]
[1765011081423,0.02821781,89411.0,89410.0,0.05954002]
[1765011081721,0.05715781,89411.0,89410.0,0.05954002]
[1765011083722,0.05715781,89411.0,89404.0,0.05712]
[1765011083723,0.05699,89405.0,89404.0,0.05712]
[1765011083919,0.43699,89405.0,89404.0,0.05712]
[1765011084313,0.38,89405.0,89400.0,0.05712]
[1765011084515,0.0681735,89401.0,89400.0,0.02748]
[1765011084720,0.4481735,89401.0,89400.0,0.02748]
[1765011085627,0.068174,89397.0,89396.0,0.05712]
[1765011085827,0.418174,89397.0,89396.0,0.02748]
[1765011086916,0.418174,89397.0,89396.0,0.05712]
[1765011087124,0.05699,89394.0,89393.0,0.02764781]
[1765011087425,0.42699,89394.0,89393.0,0.00016781]
[1765011088824,0.42699,89394.0,89393.0,0.02764781]
[1765011089030,0.42699,89394.0,89393.0,0.05728781]
[1765011092129,0.42699,89394.0,89370.0,0.18252253]
[1765011092130,0.0111866,89376.0,89375.0,0.07245]
[1765011092337,0.0679766,89376.0,89375.0,0.07245]
[1765011093827,0.0679766,89376.0,89375.0,0.07345]
[1765011094431,0.0679766,89376.0,89375.0,0.001]
[1765011094632,0.4379766,89376.0,89375.0,0.001]
[1765011094838,0.4379766,89376.0,89370.0,0.07245]
[1765011094839,0.0679772,89371.0,89370.0,0.07245]
[1765011095148,0.05679,89371.0,89370.0,0.07245]
[1765011095348,0.00016781,89384.0,89383.0,0.05528]
[1765011096643,0.00016781,89384.0,89383.0,0.45528]
[1765011102248,0.00016781,89384.0,89383.0,0.51527603]
[1765011102641,0.00016781,89384.0,89383.0,0.45528]
[1765011109259,0.0111838,89399.0,89398.0,0.05528]
[1765011109559,0.03516998,89399.0,89398.0,0.05528]
[1765011109856,0.06286998,89399.0,89398.0,0.05528]
[1765011110061,0.09195998,89399.0,89398.0,0.05528]
[1765011115961,0.02398618,89399.0,89398.0,0.05528]
[1765011116170,0.09865609,89407.0,89406.0,0.05823]
[1765011116357,0.06289707,89407.0,89406.0,0.06065002]
[1765011116563,0.09031707,89407.0,89406.0,0.06065002]
[1765011116762,0.09031707,89407.0,89406.0,0.05823]
[1765011120375,0.05504,89401.0,89400.0,0.05828]
[1765011120570,0.05504,89396.0,89395.0,0.05828]
[1765011120768,0.07901646,89396.0,89395.0,0.05828]
[1765011121078,0.0662247,89391.0,89390.0,0.00016781]
[1765011121385,0.45020116,89391.0,89390.0,0.00016781]
[1765011121564,0.45020116,89391.0,89370.0,0.18216253]
[1765011121565,0.05504,89371.0,89370.0,0.24044253]
[1765011121874,0.05504,89371.0,89370.0,0.07509]
[1765011122277,0.0384365,89378.0,89377.0,0.05828]
[1765011122576,0.0384365,89378.0,89377.0,0.06070002]
[1765011122870,0.0662265,89378.0,89377.0,0.06070002]
[1765011126682,0.05504,89378.0,89377.0,0.06070002]
[1765011127877,0.0111858,89383.0,89382.0,0.07509]
[1765011128182,0.0384358,89383.0,89382.0,0.07751002]
[1765011128381,0.0662258,89383.0,89382.0,0.07751002]
[1765011129976,0.02725,89383.0,89382.0,0.07751002]
[1765011130176,0.05520781,89386.0,89385.0,0.05828]
[1765011130372,0.05520781,89386.0,89385.0,0.06070002]
[1765011131482,0.00016781,89386.0,89385.0,0.06070002]
[1765011132483,0.00016781,89386.0,89385.0,0.42070002]
[1765011134076,0.0111833,89403.0,89385.0,0.36242002]
[1765011134382,0.0111833,89403.0,89402.0,0.05828]